[Event "SM-blixten 2025"]
[Site "Uppsala, Sweden"]
[Date "2025.07.03"]
[Round "3.7"]
[White "Religa, Marek"]
[Black "Adler, Bo"]
[Result "1-0"]
[TimeControl "3 min + 2 sec increment starting from move 1"]
[WhiteElo "2227"]
[BlackElo "2074"]

1. e4 {[%clk 00:03:04]} {[%emt 00:08:08]} e5 {[%clk 00:03:03]} {[%emt
00:00:02]} 2. Nf3 {[%clk 00:03:05]} Nc6 {[%clk 00:03:04]} {[%emt 00:00:02]} 3.
Bc4 {[%clk 00:03:06]} {[%emt 00:00:01]} Nf6 {[%clk 00:03:04]} 4. d4 {[%clk
00:03:07]} {[%emt 00:00:01]} exd4 {[%clk 00:03:01]} {[%emt 00:00:04]} 5. O-O
{[%clk 00:03:08]} {[%emt 00:00:02]} Nxe4 {[%clk 00:03:02]} {[%emt 00:00:01]} 6.
Re1 {[%clk 00:03:09]} d5 {[%clk 00:03:03]} {[%emt 00:00:02]} 7. Ng5 {[%clk
00:03:11]} Be7 {[%clk 00:02:53]} {[%emt 00:00:12]} 8. Nxf7 {[%clk 00:03:11]}
{[%emt 00:00:02]} Kxf7 {[%clk 00:02:41]} {[%emt 00:00:14]} 9. Qh5+ {[%clk
00:03:13]} {[%emt 00:00:01]} Kf8 {[%clk 00:02:29]} {[%emt 00:00:13]} 10. Bxd5
{[%clk 00:03:14]} {[%emt 00:00:02]} Qe8 {[%clk 00:01:37]} {[%emt 00:00:53]} 11.
Qxe8+ {[%clk 00:03:10]} {[%emt 00:00:06]} Kxe8 {[%clk 00:01:38]} {[%emt
00:00:01]} 12. Bxe4 {[%clk 00:03:03]} {[%emt 00:00:09]} Kf7 {[%clk 00:01:22]}
{[%emt 00:00:18]} 13. Bd5+ {[%clk 00:03:01]} {[%emt 00:00:03]} Kf6 {[%clk
00:01:20]} {[%emt 00:00:02]} 14. Nd2 {[%clk 00:03:01]} {[%emt 00:00:05]} Bf5
{[%clk 00:01:19]} {[%emt 00:00:02]} 15. Nf3 {[%clk 00:02:55]} {[%emt 00:00:08]}
Bc5 {[%clk 00:01:17]} {[%emt 00:00:05]} 16. c3 {[%clk 00:02:25]} {[%emt
00:00:31]} dxc3 {[%clk 00:01:10]} {[%emt 00:00:09]} 17. bxc3 {[%clk 00:02:22]}
{[%emt 00:00:05]} Rad8 {[%clk 00:01:10]} {[%emt 00:00:02]} 18. Bg5+ {[%clk
00:02:22]} {[%emt 00:00:01]} Kg6 {[%clk 00:01:10]} {[%emt 00:00:03]} 19. Bxd8
Rxd8 {[%clk 00:01:08]} 20. Bxc6 {[%clk 00:02:10]} {[%emt 00:00:08]} bxc6 {[%clk
00:01:09]} {[%emt 00:00:01]} 21. Nh4+ {[%clk 00:02:11]} Kf6 {[%clk 00:01:09]}
{[%emt 00:00:02]} 22. Nxf5 {[%clk 00:02:07]} {[%emt 00:00:05]} Kxf5 {[%clk
00:01:10]} {[%emt 00:00:02]} 23. Rad1 {[%clk 00:02:05]} {[%emt 00:00:04]} Bd6
{[%clk 00:01:10]} 24. g3 {[%clk 00:02:00]} {[%emt 00:00:08]} Rb8 {[%clk
00:01:10]} {[%emt 00:00:02]} 25. Rb1 {[%clk 00:02:01]} Rd8 {[%clk 00:00:58]}
{[%emt 00:00:14]} 26. Red1 {[%clk 00:01:56]} {[%emt 00:00:06]} Re8 {[%clk
00:00:58]} {[%emt 00:00:03]} 27. Kf1 {[%clk 00:01:57]} Re7 {[%clk 00:00:55]}
{[%emt 00:00:06]} 28. Rb8 {[%clk 00:01:40]} {[%emt 00:00:20]} Re4 {[%clk
00:00:41]} {[%emt 00:00:14]} 29. Rd4 {[%clk 00:01:33]} {[%emt 00:00:09]} Re5
{[%clk 00:00:38]} {[%emt 00:00:07]} 30. Rc4 {[%clk 00:01:06]} {[%emt 00:00:28]}
Ra5 {[%clk 00:00:36]} {[%emt 00:00:04]} 31. a4 {[%emt 00:00:13]} Rd5 {[%clk
00:00:25]} 32. Rxc6 {[%clk 00:00:56]} {[%emt 00:00:13]} Rd2 {[%clk 00:00:22]}
{[%emt 00:00:05]} 33. Rb5+ {[%clk 00:00:51]} {[%emt 00:00:08]} Ke6 {[%clk
00:00:17]} {[%emt 00:00:07]} 34. Ra5 {[%clk 00:00:42]} {[%emt 00:00:10]} Kd7
{[%clk 00:00:17]} {[%emt 00:00:03]} 35. Rc4 {[%clk 00:00:42]} {[%emt 00:00:01]}
c5 {[%emt 00:00:29]} 1-0

[Event "SM-blixten 2025"]
[Site "Uppsala, Sweden"]
[Date "2025.07.03"]
[Round "5.3"]
[White "Malmstig, Erik"]
[Black "Karlsson, Stefan 2005"]
[Result "1-0"]
[TimeControl "3 min + 2 sec increment starting from move 1"]
[WhiteTitle "FM"]
[WhiteElo "2231"]
[BlackElo "2127"]

1. d4 {[%clk 00:03:03]} d5 {[%clk 00:03:03]} {[%emt 00:00:02]} 2. e4 {[%clk
00:03:03]} {[%emt 00:00:01]} dxe4 {[%clk 00:02:58]} {[%emt 00:00:07]} 3. Nc3
{[%clk 00:03:04]} Nf6 {[%clk 00:02:56]} {[%emt 00:00:05]} 4. f3 {[%clk
00:03:05]} {[%emt 00:00:02]} c5 {[%clk 00:02:42]} {[%emt 00:00:15]} 5. dxc5
{[%clk 00:03:02]} {[%emt 00:00:06]} Qa5 {[%clk 00:02:33]} {[%emt 00:00:11]} 6.
Bb5+ {[%clk 00:02:56]} {[%emt 00:00:07]} Bd7 {[%clk 00:02:27]} {[%emt
00:00:08]} 7. Qe2 {[%clk 00:02:54]} {[%emt 00:00:04]} a6 {[%clk 00:02:23]}
{[%emt 00:00:07]} 8. Bxd7+ {[%clk 00:02:47]} Nbxd7 {[%clk 00:02:24]} 9. c6
{[%clk 00:02:47]} {[%emt 00:00:02]} bxc6 {[%clk 00:02:20]} {[%emt 00:00:06]} 10.
fxe4 {[%clk 00:02:48]} {[%emt 00:00:01]} e5 {[%clk 00:02:05]} {[%emt 00:00:16]}
11. Bd2 {[%clk 00:02:48]} {[%emt 00:00:02]} Bb4 {[%clk 00:02:01]} {[%emt
00:00:07]} 12. Nf3 {[%clk 00:02:45]} {[%emt 00:00:05]} O-O {[%clk 00:01:58]}
{[%emt 00:00:05]} 13. O-O {[%clk 00:02:44]} {[%emt 00:00:03]} Rab8 {[%clk
00:01:53]} {[%emt 00:00:07]} 14. Kh1 {[%clk 00:02:42]} {[%emt 00:00:04]} Qb6
{[%clk 00:01:24]} {[%emt 00:00:32]} 15. Nh4 {[%clk 00:02:41]} {[%emt 00:00:03]}
Nc5 {[%clk 00:01:07]} {[%emt 00:00:19]} 16. Rxf6 {[%clk 00:02:40]} {[%emt
00:00:03]} gxf6 {[%clk 00:01:04]} {[%emt 00:00:04]} 17. Bh6 {[%clk 00:02:35]}
{[%emt 00:00:07]} Kh8 {[%clk 00:01:02]} {[%emt 00:00:04]} 18. Qf3 {[%clk
00:02:17]} {[%emt 00:00:20]} Nd7 {[%clk 00:00:53]} {[%emt 00:00:11]} 19. Bxf8
{[%clk 00:02:18]} {[%emt 00:00:02]} Rxf8 {[%clk 00:00:54]} 20. Rd1 {[%clk
00:02:18]} {[%emt 00:00:01]} Rd8 {[%clk 00:00:31]} {[%emt 00:00:26]} 21. Na4
{[%clk 00:02:04]} {[%emt 00:00:15]} Qb5 {[%clk 00:00:25]} {[%emt 00:00:07]} 22.
Qb3 {[%clk 00:01:55]} {[%emt 00:00:12]} Nf8 {[%clk 00:00:20]} {[%emt 00:00:07]}
23. c3 {[%clk 00:01:41]} {[%emt 00:00:16]} Rxd1+ {[%clk 00:00:17]} {[%emt
00:00:05]} 24. Qxd1 {[%clk 00:01:42]} {[%emt 00:00:01]} Be7 {[%clk 00:00:18]}
25. Nf5 {[%clk 00:01:41]} {[%emt 00:00:04]} Ng6 {[%clk 00:00:17]} {[%emt
00:00:03]} 26. b3 {[%clk 00:01:38]} {[%emt 00:00:05]} Qb8 {[%clk 00:00:15]}
{[%emt 00:00:02]} 27. h3 {[%clk 00:01:35]} {[%emt 00:00:05]} Bf8 {[%clk
00:00:17]} {[%emt 00:00:01]} 28. Qd7 {[%clk 00:01:33]} {[%emt 00:00:05]} Kg8
{[%clk 00:00:13]} {[%emt 00:00:05]} 29. Qxc6 {[%clk 00:01:27]} {[%emt
00:00:08]} Qd8 {[%clk 00:00:15]} 30. Qd5 {[%clk 00:01:22]} {[%emt 00:00:06]}
Qc8 {[%clk 00:00:08]} {[%emt 00:00:09]} 31. c4 {[%clk 00:01:22]} {[%emt
00:00:02]} Nf4 {[%clk 00:00:10]} 32. Qd1 {[%clk 00:01:18]} {[%emt 00:00:07]}
Qc6 {[%clk 00:00:07]} {[%emt 00:00:05]} 33. Nc3 {[%clk 00:01:18]} {[%emt
00:00:02]} Qc5 {[%clk 00:00:08]} {[%emt 00:00:01]} 34. Nd5 {[%clk 00:01:17]}
{[%emt 00:00:03]} Kh8 {[%clk 00:00:04]} {[%emt 00:00:05]} 35. Qg4 {[%clk
00:01:08]} {[%emt 00:00:11]} Qf2 {[%clk 00:00:04]} {[%emt 00:00:02]} 36. Nxf6
{[%clk 00:01:06]} {[%emt 00:00:04]} Ng6 {[%clk 00:00:04]} {[%emt 00:00:02]} 37.
Qf3 {[%clk 00:01:00]} {[%emt 00:00:08]} Qe1+ {[%clk 00:00:06]} {[%emt
00:00:01]} 38. Kh2 {[%clk 00:01:01]} {[%emt 00:00:01]} Nf4 {[%clk 00:00:04]}
{[%emt 00:00:04]} 39. Qe3 {[%clk 00:00:57]} {[%emt 00:00:06]} Qf1 {[%clk
00:00:03]} {[%emt 00:00:03]} 40. Nh4 {[%clk 00:00:54]} {[%emt 00:00:04]} Qb1
{[%clk 00:00:03]} {[%emt 00:00:02]} 41. Qc3 {[%clk 00:00:52]} {[%emt 00:00:04]}
Qd1 {[%emt 00:00:04]} 1-0

[Event "SM-blixten 2025"]
[Site "Uppsala, Sweden"]
[Date "2025.07.03"]
[Round "6.9"]
[White "Ask, Josef"]
[Black "Tadjerbashi, Amir"]
[Result "0-1"]
[TimeControl "3 min + 2 sec increment starting from move 1"]
[WhiteTitle "FM"]
[WhiteElo "2130"]
[BlackElo "2235"]

1. e4 {[%clk 00:03:03]} e5 {[%clk 00:03:03]} {[%emt 00:00:02]} 2. d4 {[%clk
00:02:59]} {[%emt 00:00:06]} exd4 {[%clk 00:03:03]} {[%emt 00:00:02]} 3. Bb5
{[%clk 00:02:58]} {[%emt 00:00:03]} Nc6 {[%clk 00:02:46]} {[%emt 00:00:19]} 4.
Ne2 {[%clk 00:02:58]} {[%emt 00:00:01]} Bc5 {[%clk 00:02:36]} {[%emt 00:00:12]}
5. O-O {[%clk 00:02:52]} {[%emt 00:00:09]} Nf6 {[%clk 00:02:22]} {[%emt
00:00:17]} 6. Ng3 {[%clk 00:02:53]} d6 {[%clk 00:02:15]} {[%emt 00:00:08]} 7.
a3 {[%clk 00:02:54]} {[%emt 00:00:02]} O-O {[%clk 00:02:13]} {[%emt 00:00:04]}
8. b4 {[%clk 00:02:55]} Bb6 {[%clk 00:02:14]} 9. h3 {[%clk 00:02:45]} {[%emt
00:00:12]} Re8 {[%clk 00:02:14]} {[%emt 00:00:02]} 10. Re1 {[%clk 00:02:42]}
{[%emt 00:00:05]} Be6 {[%clk 00:02:09]} {[%emt 00:00:08]} 11. Bg5 {[%clk
00:02:33]} {[%emt 00:00:10]} h6 {[%clk 00:02:09]} {[%emt 00:00:02]} 12. Bf4
{[%clk 00:02:35]} Ne5 {[%clk 00:02:06]} {[%emt 00:00:05]} 13. Bxe8 {[%clk
00:02:32]} {[%emt 00:00:05]} Qxe8 {[%clk 00:02:07]} {[%emt 00:00:01]} 14. Nd2
{[%clk 00:02:23]} {[%emt 00:00:10]} Ng6 {[%clk 00:02:01]} {[%emt 00:00:09]} 15.
Qf3 {[%clk 00:02:19]} {[%emt 00:00:07]} Nd7 {[%clk 00:01:54]} {[%emt 00:00:09]}
16. Nh5 {[%clk 00:02:10]} {[%emt 00:00:10]} Nde5 {[%clk 00:01:46]} {[%emt
00:00:10]} 17. Qg3 {[%clk 00:02:04]} {[%emt 00:00:08]} Qe7 {[%clk 00:01:31]}
{[%emt 00:00:17]} 18. Nf3 {[%clk 00:01:40]} {[%emt 00:00:27]} Nxf3+ {[%clk
00:01:16]} {[%emt 00:00:17]} 19. Qxf3 {[%clk 00:01:35]} {[%emt 00:00:07]} Bc4
{[%clk 00:01:06]} {[%emt 00:00:11]} 20. Qg3 {[%clk 00:01:27]} {[%emt 00:00:10]}
Re8 {[%clk 00:01:03]} {[%emt 00:00:04]} 21. Bd2 {[%clk 00:01:15]} {[%emt
00:00:15]} Kh7 {[%clk 00:00:59]} {[%emt 00:00:06]} 22. Kh2 {[%clk 00:01:11]}
{[%emt 00:00:06]} Rg8 {[%clk 00:00:39]} {[%emt 00:00:22]} 23. f4 {[%clk
00:01:08]} {[%emt 00:00:05]} c6 {[%clk 00:00:40]} 24. f5 {[%clk 00:00:55]}
{[%emt 00:00:15]} Ne5 {[%clk 00:00:41]} 25. Bf4 {[%clk 00:00:53]} {[%emt
00:00:04]} Bd8 {[%clk 00:00:42]} {[%emt 00:00:01]} 26. Rad1 {[%clk 00:00:38]}
{[%emt 00:00:18]} c5 {[%clk 00:00:43]} 27. bxc5 {[%clk 00:00:37]} {[%emt
00:00:03]} Bc7 {[%clk 00:00:45]} 28. cxd6 {[%clk 00:00:35]} {[%emt 00:00:04]}
Qxd6 {[%clk 00:00:45]} 29. Kh1 {[%clk 00:00:20]} {[%emt 00:00:16]} g6 {[%clk
00:00:46]} 30. fxg6+ {[%clk 00:00:16]} {[%emt 00:00:07]} fxg6 {[%clk 00:00:47]}
31. Rxd4 {[%clk 00:00:10]} {[%emt 00:00:08]} Qxd4 {[%clk 00:00:31]} {[%emt
00:00:18]} 32. Nf6+ {[%clk 00:00:11]} Kg7 {[%clk 00:00:30]} {[%emt 00:00:04]}
33. Nxg8 {[%clk 00:00:11]} {[%emt 00:00:02]} Bxg8 {[%clk 00:00:20]} {[%emt
00:00:11]} 34. Re3 {[%clk 00:00:07]} {[%emt 00:00:07]} g5 {[%clk 00:00:15]}
{[%emt 00:00:07]} 35. Bxe5+ {[%clk 00:00:04]} {[%emt 00:00:05]} Bxe5 {[%clk
00:00:16]} {[%emt 00:00:01]} 36. Qf2 {[%clk 00:00:03]} {[%emt 00:00:04]} Bc4
{[%clk 00:00:12]} {[%emt 00:00:05]} 37. Qf5 {[%emt 00:00:04]} Qd1+ {[%emt
00:00:01]} 0-1

[Event "SM-blixten 2025"]
[Site "Uppsala, Sweden"]
[Date "2025.07.03"]
[Round "8.5"]
[White "Olund, Joar"]
[Black "Berovski, Krum"]
[Result "1-0"]
[TimeControl "3 min + 2 sec increment starting from move 1"]
[WhiteTitle "FM"]
[WhiteElo "2369"]
[BlackElo "2344"]

1. Nf3 {[%clk 00:03:03]} Nf6 {[%clk 00:03:03]} {[%emt 00:00:01]} 2. b3 {[%clk
00:03:02]} {[%emt 00:00:04]} e6 {[%clk 00:03:00]} {[%emt 00:00:05]} 3. Bb2
{[%clk 00:03:04]} Be7 {[%clk 00:03:01]} {[%emt 00:00:01]} 4. g3 {[%clk
00:03:05]} {[%emt 00:00:01]} d5 {[%clk 00:03:01]} {[%emt 00:00:02]} 5. c4
{[%clk 00:03:06]} c6 {[%clk 00:03:02]} {[%emt 00:00:01]} 6. Bg2 {[%clk
00:03:07]} Nbd7 {[%clk 00:03:02]} {[%emt 00:00:02]} 7. O-O {[%clk 00:03:08]}
{[%emt 00:00:01]} O-O {[%clk 00:03:03]} {[%emt 00:00:01]} 8. d3 {[%clk
00:03:09]} a5 {[%clk 00:03:01]} {[%emt 00:00:05]} 9. a3 {[%clk 00:03:10]}
{[%emt 00:00:01]} Qc7 {[%clk 00:02:44]} {[%emt 00:00:20]} 10. Nbd2 {[%clk
00:03:11]} {[%emt 00:00:01]} e5 {[%clk 00:02:35]} {[%emt 00:00:11]} 11. Rc1
{[%clk 00:02:58]} {[%emt 00:00:15]} d4 {[%clk 00:02:34]} {[%emt 00:00:03]} 12.
e3 {[%clk 00:02:55]} {[%emt 00:00:05]} c5 {[%clk 00:02:26]} {[%emt 00:00:10]}
13. Qe2 {[%clk 00:02:48]} {[%emt 00:00:09]} Bd6 {[%clk 00:02:20]} {[%emt
00:00:08]} 14. Ng5 {[%clk 00:02:48]} {[%emt 00:00:02]} Re8 {[%clk 00:02:02]}
{[%emt 00:00:14]} 15. Rce1 {[%clk 00:02:45]} {[%emt 00:00:10]} Nf8 {[%clk
00:01:50]} {[%emt 00:00:14]} 16. Nde4 {[%clk 00:02:29]} {[%emt 00:00:18]} Nxe4
{[%clk 00:01:48]} {[%emt 00:00:04]} 17. Nxe4 {[%clk 00:02:30]} {[%emt
00:00:02]} Be7 {[%clk 00:01:45]} {[%emt 00:00:04]} 18. h4 {[%clk 00:02:27]}
{[%emt 00:00:06]} Bd7 {[%clk 00:01:36]} {[%emt 00:00:10]} 19. Qh5 {[%clk
00:01:49]} {[%emt 00:00:40]} Qb6 {[%clk 00:01:26]} {[%emt 00:00:12]} 20. exd4
{[%clk 00:01:07]} {[%emt 00:00:45]} exd4 {[%clk 00:01:12]} {[%emt 00:00:15]} 21.
Qd1 {[%clk 00:00:54]} {[%emt 00:00:15]} a4 {[%clk 00:01:09]} {[%emt 00:00:05]}
22. Nd2 {[%clk 00:00:51]} {[%emt 00:00:06]} Bf6 {[%clk 00:00:38]} {[%emt
00:00:33]} 23. Bc1 {[%clk 00:00:44]} {[%emt 00:00:09]} Rxe1 {[%clk 00:00:35]}
{[%emt 00:00:05]} 24. Rxe1 {[%clk 00:00:45]} {[%emt 00:00:01]} Bc6 {[%clk
00:00:22]} {[%emt 00:00:15]} 25. bxa4 {[%clk 00:00:38]} {[%emt 00:00:09]} Bxg2
{[%clk 00:00:21]} {[%emt 00:00:03]} 26. Kxg2 {[%clk 00:00:39]} {[%emt
00:00:01]} Qc6+ {[%clk 00:00:20]} {[%emt 00:00:02]} 27. Ne4 {[%clk 00:00:35]}
{[%emt 00:00:06]} Be7 {[%clk 00:00:19]} {[%emt 00:00:04]} 28. Qf3 {[%clk
00:00:35]} {[%emt 00:00:01]} Rxa4 {[%clk 00:00:16]} {[%emt 00:00:06]} 29. Ng5
{[%clk 00:00:08]} {[%emt 00:00:29]} Bxg5 {[%clk 00:00:08]} {[%emt 00:00:10]} 30.
Qxc6 bxc6 {[%clk 00:00:09]} 31. hxg5 {[%clk 00:00:10]} {[%emt 00:00:01]} Ne6
{[%clk 00:00:10]} 32. f4 {[%clk 00:00:11]} {[%emt 00:00:01]} g6 {[%clk
00:00:09]} {[%emt 00:00:03]} 33. g4 {[%clk 00:00:12]} Kf8 {[%clk 00:00:06]}
{[%emt 00:00:05]} 34. f5 {[%clk 00:00:11]} {[%emt 00:00:04]} gxf5 {[%clk
00:00:07]} {[%emt 00:00:01]} 35. gxf5 {[%clk 00:00:12]} Ng7 {[%clk 00:00:08]}
{[%emt 00:00:01]} 36. Re5 {[%clk 00:00:13]} Ra5 {[%clk 00:00:07]} {[%emt
00:00:03]} 37. Kf3 {[%clk 00:00:11]} {[%emt 00:00:04]} Ne8 {[%clk 00:00:06]}
{[%emt 00:00:04]} 38. Kg4 {[%clk 00:00:06]} {[%emt 00:00:07]} f6 {[%clk
00:00:07]} {[%emt 00:00:01]} 39. Re6 {[%clk 00:00:06]} {[%emt 00:00:01]} fxg5
{[%clk 00:00:08]} {[%emt 00:00:02]} 40. Rxc6 {[%clk 00:00:04]} {[%emt
00:00:04]} Kf7 {[%clk 00:00:07]} {[%emt 00:00:03]} 41. Kxg5 {[%clk 00:00:05]}
{[%emt 00:00:01]} Ra8 {[%clk 00:00:05]} {[%emt 00:00:04]} 42. Rxc5 {[%clk
00:00:05]} {[%emt 00:00:01]} Rb8 {[%clk 00:00:06]} 43. Rb5 {[%clk 00:00:06]}
{[%emt 00:00:01]} Ra8 {[%clk 00:00:07]} 44. Rb7+ {[%clk 00:00:07]} {[%emt
00:00:01]} Kf8 {[%clk 00:00:09]} 45. Bd2 {[%clk 00:00:07]} {[%emt 00:00:02]}
Ra6 {[%clk 00:00:09]} {[%emt 00:00:01]} 46. Bb4+ {[%clk 00:00:08]} Kg8 {[%clk
00:00:10]} {[%emt 00:00:02]} 47. Rb8 {[%clk 00:00:09]} Kf7 {[%clk 00:00:12]} 48.
Rb7+ {[%clk 00:00:10]} Kg8 {[%clk 00:00:13]} 49. Rd7 {[%clk 00:00:09]} {[%emt
00:00:03]} h6+ {[%clk 00:00:12]} {[%emt 00:00:04]} 50. Kf4 {[%clk 00:00:10]}
Ng7 {[%clk 00:00:13]} {[%emt 00:00:02]} 51. Rxd4 {[%clk 00:00:07]} {[%emt
00:00:05]} Nh5+ {[%clk 00:00:13]} {[%emt 00:00:01]} 52. Ke5 {[%clk 00:00:08]}
{[%emt 00:00:01]} Ra5+ {[%clk 00:00:14]} {[%emt 00:00:02]} 53. Bxa5 {[%clk
00:00:08]} {[%emt 00:00:01]} 1-0

[Event "SM-blixten 2025"]
[Site "Uppsala, Sweden"]
[Date "2025.07.03"]
[Round "10.1"]
[White "Galperin, Platon"]
[Black "Johnson, Daniel"]
[Result "1-0"]
[TimeControl "3 min + 2 sec increment starting from move 1"]
[WhiteTitle "GM"]
[WhiteElo "2506"]
[BlackElo "2175"]

1. Nf3 {[%clk 00:03:03]} {[%emt 00:09:30]} d5 {[%clk 00:03:03]} {[%emt
00:00:01]} 2. e3 {[%clk 00:03:04]} {[%emt 00:00:01]} Nf6 {[%clk 00:03:03]}
{[%emt 00:00:02]} 3. c4 {[%clk 00:03:04]} {[%emt 00:00:02]} e6 {[%clk
00:03:03]} {[%emt 00:00:02]} 4. b3 {[%clk 00:03:04]} {[%emt 00:00:02]} b6
{[%clk 00:03:00]} {[%emt 00:00:05]} 5. Bb2 {[%clk 00:03:04]} {[%emt 00:00:02]}
Bb7 {[%clk 00:03:01]} {[%emt 00:00:02]} 6. cxd5 {[%clk 00:03:01]} {[%emt
00:00:04]} exd5 {[%clk 00:03:00]} {[%emt 00:00:03]} 7. g3 {[%clk 00:03:02]}
{[%emt 00:00:01]} Bd6 {[%clk 00:02:56]} {[%emt 00:00:06]} 8. Bg2 {[%clk
00:03:02]} {[%emt 00:00:02]} O-O {[%clk 00:02:56]} {[%emt 00:00:03]} 9. O-O
{[%clk 00:03:02]} {[%emt 00:00:02]} Re8 {[%clk 00:02:56]} {[%emt 00:00:01]} 10.
Nc3 {[%clk 00:03:02]} {[%emt 00:00:02]} a6 {[%clk 00:02:56]} {[%emt 00:00:02]}
11. Rc1 {[%clk 00:03:03]} {[%emt 00:00:01]} Nbd7 {[%clk 00:02:57]} {[%emt
00:00:02]} 12. Ne2 {[%clk 00:03:00]} {[%emt 00:00:05]} Bf8 {[%clk 00:02:52]}
{[%emt 00:00:06]} 13. Nf4 {[%clk 00:02:54]} {[%emt 00:00:08]} g6 {[%clk
00:02:38]} {[%emt 00:00:17]} 14. d3 {[%clk 00:02:43]} {[%emt 00:00:12]} Bg7
{[%clk 00:02:31]} {[%emt 00:00:09]} 15. Rc2 {[%clk 00:02:44]} {[%emt 00:00:01]}
Rc8 {[%clk 00:02:15]} {[%emt 00:00:18]} 16. Qa1 {[%clk 00:02:45]} {[%emt
00:00:01]} Qe7 {[%clk 00:02:04]} {[%emt 00:00:12]} 17. Rfc1 {[%clk 00:02:46]}
{[%emt 00:00:02]} c5 {[%clk 00:01:59]} {[%emt 00:00:08]} 18. d4 {[%clk
00:02:47]} {[%emt 00:00:01]} Ne4 {[%clk 00:01:45]} {[%emt 00:00:16]} 19. dxc5
{[%clk 00:02:46]} {[%emt 00:00:03]} Bxb2 {[%clk 00:01:43]} {[%emt 00:00:04]} 20.
Qxb2 {[%clk 00:02:47]} {[%emt 00:00:01]} bxc5 {[%clk 00:01:35]} {[%emt
00:00:10]} 21. Nd2 {[%clk 00:02:41]} {[%emt 00:00:07]} Nxf2 {[%clk 00:01:07]}
{[%emt 00:00:30]} 22. Kxf2 {[%clk 00:02:07]} {[%emt 00:00:36]} Qxe3+ {[%clk
00:01:07]} {[%emt 00:00:02]} 23. Kf1 {[%clk 00:02:09]} {[%emt 00:00:01]} a5
{[%clk 00:01:02]} {[%emt 00:00:07]} 24. Rc3 {[%clk 00:02:08]} {[%emt 00:00:02]}
Ba6+ {[%clk 00:00:55]} {[%emt 00:00:09]} 25. Nc4 {[%clk 00:02:09]} dxc4 {[%clk
00:00:37]} {[%emt 00:00:20]} 26. Rxe3 {[%clk 00:02:08]} {[%emt 00:00:04]} c3+
{[%clk 00:00:38]} {[%emt 00:00:01]} 27. Qe2 {[%clk 00:02:09]} {[%emt 00:00:01]}
Bxe2+ {[%clk 00:00:34]} {[%emt 00:00:06]} 28. Rxe2 {[%clk 00:02:09]} {[%emt
00:00:01]} Nf6 {[%clk 00:00:13]} {[%emt 00:00:24]} 29. Rxc3 {[%clk 00:02:06]}
{[%emt 00:00:04]} Rxe2 {[%clk 00:00:09]} {[%emt 00:00:06]} 30. Kxe2 {[%clk
00:02:07]} {[%emt 00:00:01]} Re8+ {[%clk 00:00:10]} {[%emt 00:00:02]} 31. Re3
{[%clk 00:02:07]} {[%emt 00:00:02]} 1-0